Workbook

Sheet 22-14
A1: ПАТ "УКРТРАНСГАЗ" | G1: ПАСПОРТ ФІЗИКО-ХІМІЧНИХ ПОКАЗНИКІВ ПРИРОДНОГО ГАЗУ № 22-14/12.2016
A2: Філія "УМГ "Черкаситрансгаз" | G2: переданого Гайсинським ЛВУМГ та прийнятого ТОВ "Автотрансгаз" | AB2: Маршрут № 812
A3: Гайсинський п/м Гайсинське ЛВУМГ | G3: по ГВС (ПВВГ, СВГ, ГРС): ГРС Умань Автотрансгаз
A4: Вимірювальна хіміко-аналітична лабораторія
A5: Свідоцтво № ПУ-0077/14 чинно до 27.05.2018 р. | K5: газопроводу "СОЮЗ" | V5: за період з | X5: 2016-12-01 | Z5: по | AA5: =EOMONTH(X5,0) -> 2016-12-31
A7: Число місяця | B7: Компонентний склад, % мол. | N7: Фізико-хімічні показники газу обчислені на основі компонентного складу, 101,325 кПа | X7: Температура точки роси вологи (Р = 3.92 МПа), ºС | Y7: Температура точки роси вуглеводнів, ºС | Z7: Масова концентрація сірководню, мг/м3 | AA7: Масова концентрація меркаптанової сірки, мг/м3 | AB7: Маса механічних домішок, мг/м3 | AC7: Обсяг газу, тис. м3
N8: Густина абсолютна, кг/м3,при 20 ºС, | O8: Температура вимірювання/згоряння при | V8: 20/25ºС
B9: метан, С1 | C9: етан, С2 | D9: пропан, С3 | E9: ізо-бутан, і-С4 | F9: н-бутан, н-С4 | G9: нео-пентан, нео-С5 | H9: ізо-пентан, і-С5 | I9: н-пентан, н-С5 | J9: гексани та вищі, С6+ | K9: кисень, О2 | L9: азот, N2 | M9: діоксид вуглецю, CО2 | O9: Теплота згоряння нижча, ккал/м3 | P9: Теплота згоряння нижча, МДж/м3 | Q9: Теплота згоряння нижча, кВт⋅год/м3 | R9: Теплота згоряння вища, ккал/м3 | S9: Теплота згоряння вища, МДж/м3 | T9: Теплота згоряння вища, кВт⋅год/м3 | U9: Число Воббе вище, ккал/м3 | V9: Число Воббе вище, МДж/м3 | W9: Число Воббе вище, кВт⋅год/м3
A11: 1 | B11: 96.6361 | C11: 1.7387 | D11: 0.5369 | E11: 0.082 | F11: 0.0845 | G11: 0.0022 | H11: 0.0171 | I11: 0.0122 | J11: 0.0039 | K11: 0.008 | L11: 0.7243 | M11: 0.1542 | N11: 0.6939 | O11: 8129 | P11: 34.03 | Q11: =P11/3.6 -> 9.452777778 | R11: 9012 | S11: 37.73 | T11: =S11/3.6 -> 10.48055556 | U11: 11873 | V11: 49.7079 | W11: =V11/3.6 -> 13.80775 | X11: -22.7 | AD11: =SUM(B11:M11)+$K$42+$N$42 -> 100.0001
A12: 2 | B12: 96.6944 | C12: 1.7088 | D12: 0.5103 | E12: 0.0803 | F12: 0.0814 | G12: 0.0041 | H12: 0.0172 | I12: 0.0121 | J12: 0.0058 | K12: 0.0079 | L12: 0.7254 | M12: 0.1523 | N12: 0.6934 | O12: 8124 | P12: 34.01 | Q12: 9.447222222 | R12: 9006 | S12: 37.71 | T12: 10.475 | U12: 11870 | V12: 49.6962 | W12: 13.8045 | X12: -23 | AD12: 100
A13: 3 | N13: 0.6934 | O13: 8124 | P13: 34.01 | Q13: 9.447222222 | R13: 9006 | S13: 37.71 | T13: 10.475 | AD13: 0 | AE13: =IF(AD13=100,"ОК"," ") -> 
A14: 4 | N14: 0.6934 | O14: 8124 | P14: 34.01 | Q14: 9.447222222 | R14: 9006 | S14: 37.71 | T14: 10.475 | AD14: 0 | AE14: =IF(AD14=100,"ОК"," ") -> 
A15: 5 | B15: 96.691 | C15: 1.722 | D15: 0.515 | E15: 0.0802 | F15: 0.0804 | G15: 0.0032 | H15: 0.0169 | I15: 0.0119 | J15: 0.0049 | K15: 0.0077 | L15: 0.7164 | M15: 0.1506 | N15: 0.6934 | O15: 8125 | P15: 34.02 | Q15: =P15/3.6 -> 9.45 | R15: 9008 | S15: 37.71 | T15: =S15/3.6 -> 10.475 | U15: 11872 | V15: 49.7054 | W15: 13.80705556 | X15: -23.1 | AD15: 100.0002
A16: 6 | B16: 96.6564 | C16: 1.7415 | D16: 0.522 | E16: 0.0809 | F16: 0.0817 | G16: 0.0016 | H16: 0.0167 | I16: 0.0115 | J16: 0.0041 | K16: 0.0078 | L16: 0.7236 | M16: 0.1521 | N16: 0.6936 | O16: 8126 | P16: 34.02 | Q16: =P16/3.6 -> 9.45 | R16: 9009 | S16: 37.72 | T16: =S16/3.6 -> 10.47777778 | U16: 11871 | V16: 49.7035 | W16: 13.80652778 | X16: -22.9 | AD16: 99.9999
A17: 7 | B17: 96.715 | C17: 1.7147 | D17: 0.5168 | E17: 0.0801 | F17: 0.08 | G17: 0.0016 | H17: 0.0161 | I17: 0.0113 | J17: 0.0036 | K17: 0.008 | L17: 0.7101 | M17: 0.1427 | N17: 0.6932 | O17: 8125 | P17: 34.02 | Q17: 9.45 | R17: 9008 | S17: 37.71 | T17: 10.475 | U17: 11874 | V17: 49.713 | W17: 13.80916667 | X17: -22.6 | AD17: 100 | AE17: ОК
A18: 8 | B18: 96.6961 | C18: 1.7287 | D18: 0.5236 | E18: 0.0815 | F18: 0.0808 | G18: 0.0042 | H18: 0.0158 | I18: 0.0107 | J18: 0.0029 | K18: 0.0079 | L18: 0.7033 | M18: 0.1445 | N18: 0.6934 | O18: 8127 | P18: 34.03 | Q18: 9.452777778 | R18: 9011 | S18: 37.73 | T18: 10.48055556 | U18: 11876 | V18: 49.7218 | W18: 13.81161111 | X18: -22.9 | AD18: 100 | AE18: ОК
A19: 9 | B19: 96.7687 | C19: 1.6758 | D19: 0.5115 | E19: 0.0797 | F19: 0.081 | G19: 0.004 | H19: 0.0163 | I19: 0.0113 | J19: 0.0033 | K19: 0.0079 | L19: 0.7025 | M19: 0.1382 | N19: 0.6929 | O19: 8123 | P19: 34.01 | Q19: 9.447222222 | R19: 9006 | S19: 37.7071 | T19: 10.47419444 | U19: 11874 | V19: 49.716 | W19: 13.81 | X19: -20.8 | AD19: 100.0002
A20: 10 | N20: 0.6929 | O20: 8123 | P20: 34.01 | Q20: 9.447222222 | R20: 9006 | S20: 37.7071 | T20: 10.47419444 | AD20: 0
A21: 11 | N21: 0.6929 | O21: 8123 | P21: 34.01 | Q21: 9.447222222 | R21: 9006 | S21: 37.7071 | T21: 10.47419444 | AD21: 0
A22: 12 | B22: 96.6981 | C22: 1.7322 | D22: 0.5182 | E22: 0.0801 | F22: 0.0792 | G22: 0.0021 | H22: 0.0162 | I22: 0.0112 | J22: 0.0033 | K22: 0.0076 | L22: 0.7061 | M22: 0.1457 | N22: 0.6933 | O22: 8126 | P22: 34.02 | Q22: =P22/3.6 -> 9.45 | R22: 9009 | S22: 37.72 | T22: =S22/3.6 -> 10.47777778 | U22: 11874 | V22: 49.7161 | W22: 13.81002778 | X22: -21.7 | AD22: 100 | AE22: ОК
A23: 13 | B23: 96.6955 | C23: 1.7279 | D23: 0.5199 | E23: 0.0807 | F23: 0.0808 | G23: 0.0022 | H23: 0.016 | I23: 0.0113 | J23: 0.0035 | K23: 0.0077 | L23: 0.7094 | M23: 0.1451 | N23: 0.6933 | O23: 8126 | P23: 34.02 | Q23: =P23/3.6 -> 9.45 | R23: 9009 | S23: 37.72 | T23: =S23/3.6 -> 10.47777778 | U23: 11874 | V23: 49.72 | W23: 13.81111111 | X23: -23 | AD23: 100 | AE23: ОК
A24: 14 | B24: 96.6874 | C24: 1.7336 | D24: 0.5174 | E24: 0.0803 | F24: 0.0805 | G24: 0.002 | H24: 0.0168 | I24: 0.0116 | J24: 0.0037 | K24: 0.0076 | L24: 0.7115 | M24: 0.1475 | N24: 0.6934 | O24: 8126 | P24: 34.02 | Q24: 9.45 | R24: 9009 | S24: 37.72 | T24: 10.47777778 | U24: 11874 | V24: 49.71 | W24: 13.80833333 | X24: -22.9 | AD24: 99.9999
A25: 15 | B25: 96.7367 | C25: 1.7031 | D25: 0.5105 | E25: 0.0802 | F25: 0.0808 | G25: 0.0016 | H25: 0.0165 | I25: 0.0114 | J25: 0.003 | K25: 0.0078 | L25: 0.6961 | M25: 0.1523 | N25: 0.6931 | O25: 8124 | P25: 34.01 | Q25: 9.447222222 | R25: 9007 | S25: 37.71 | T25: 10.475 | U25: 11873 | V25: 49.71 | W25: 13.80833333 | X25: -23 | AD25: 100 | AE25: ОК
A26: 16 | B26: 96.6573 | C26: 1.7503 | D26: 0.5319 | E26: 0.0831 | F26: 0.0833 | G26: 0.0054 | H26: 0.0169 | I26: 0.0116 | J26: 0.0037 | K26: 0.0077 | L26: 0.6983 | M26: 0.1505 | N26: 0.6938 | O26: 8132 | P26: 34.05 | Q26: 9.458333333 | R26: 9015 | S26: 37.74 | T26: 10.48333333 | U26: 11878 | V26: 49.73 | W26: 13.81388889 | X26: -22.9 | AD26: 100 | AE26: ОК
A27: 17 | N27: 0.6938 | O27: 8132 | P27: 34.05 | Q27: 9.458333333 | R27: 9015 | S27: 37.74 | T27: 10.48333333 | AD27: 0
A28: 18 | N28: 0.6938 | O28: 8132 | P28: 34.05 | Q28: 9.458333333 | R28: 9015 | S28: 37.74 | T28: 10.48333333 | AD28: 0
A29: 19 | B29: 96.6966 | C29: 1.7187 | D29: 0.5186 | E29: 0.08 | F29: 0.0812 | G29: 0.007 | H29: 0.0167 | I29: 0.0117 | J29: 0.0043 | K29: 0.0078 | L29: 0.7142 | M29: 0.143 | N29: 0.6934 | O29: 8127 | P29: 34.03 | Q29: 9.452777778 | R29: 9010 | S29: 37.72 | T29: 10.47777778 | U29: 11875 | V29: 49.72 | W29: 13.81111111 | X29: -21.4 | AD29: 99.9998
A30: 20 | B30: 96.6912 | C30: 1.72 | D30: 0.5208 | E30: 0.0804 | F30: 0.0811 | G30: 0.0039 | H30: 0.0171 | I30: 0.0118 | J30: 0.0036 | K30: 0.0081 | L30: 0.7187 | M30: 0.1432 | N30: 0.6934 | O30: 8126 | P30: 34.02 | Q30: 9.45 | R30: 9009 | S30: 37.72 | T30: 10.47777778 | U30: 11873 | V30: 49.71 | W30: 13.80833333 | X30: -20 | AD30: 99.9999
A31: 21 | B31: 96.703 | C31: 1.7344 | D31: 0.5211 | E31: 0.0806 | F31: 0.081 | G31: 0.004 | H31: 0.0164 | I31: 0.0113 | J31: 0.0035 | K31: 0.0077 | L31: 0.6996 | M31: 0.1373 | N31: 0.6933 | O31: 8129 | P31: 34.03 | Q31: 9.452777778 | R31: 9012 | S31: 37.73 | T31: 10.48055556 | U31: 11878 | V31: 49.73 | W31: 13.81388889 | X31: -21.2 | AD31: 99.9999
A32: 22 | B32: 96.7305 | C32: 1.7078 | D32: 0.5134 | E32: 0.0789 | F32: 0.0793 | G32: 0.0007 | H32: 0.0167 | I32: 0.0116 | J32: 0.0029 | K32: 0.0088 | L32: 0.7111 | M32: 0.1382 | N32: 0.693 | O32: 8124 | P32: 34.01 | Q32: 9.447222222 | R32: 9006 | S32: 37.71 | T32: 10.475 | U32: 11874 | V32: 49.71 | W32: 13.80833333 | X32: -22.6 | AD32: 99.9999
A33: 23 | B33: 96.7186 | C33: 1.7109 | D33: 0.5142 | E33: 0.0793 | F33: 0.0793 | G33: 0.0029 | H33: 0.0165 | I33: 0.0113 | J33: 0.0033 | K33: 0.0074 | L33: 0.7107 | M33: 0.1454 | N33: 0.6932 | O33: 8124 | P33: 34.01 | Q33: 9.447222222 | R33: 9007 | S33: 37.71 | T33: 10.475 | U33: 11873 | V33: 49.71 | W33: 13.80833333 | X33: -8.4 | AD33: 99.9998 | AE33: =IF(AD33=100,"ОК"," ") -> 
A34: 24 | N34: 0.6932 | O34: 8124 | P34: 34.01 | Q34: 9.447222222 | R34: 9007 | S34: 37.71 | T34: 10.475 | AD34: 0
A35: 25 | N35: 0.6932 | O35: 8124 | P35: 34.01 | Q35: 9.447222222 | R35: 9007 | S35: 37.71 | T35: 10.475 | AD35: 0
A36: 26 | B36: 96.6567 | C36: 1.7528 | D36: 0.5452 | E36: 0.0847 | F36: 0.0853 | G36: 0.003 | H36: 0.0172 | I36: 0.0122 | J36: 0.0045 | K36: 0.0076 | L36: 0.6892 | M36: 0.1416 | N36: 0.6939 | O36: 8135 | P36: 34.06 | Q36: 9.461111111 | R36: 9019 | S36: 37.76 | T36: 10.48888889 | U36: 11883 | V36: 49.7506 | W36: 13.81961111 | X36: -10.7 | AD36: 100 | AE36: ОК
A37: 27 | B37: 96.6898 | C37: 1.732 | D37: 0.5455 | E37: 0.0839 | F37: 0.0848 | G37: 0.0021 | H37: 0.0167 | I37: 0.0117 | J37: 0.0034 | K37: 0.0076 | L37: 0.684 | M37: 0.1385 | N37: 0.6936 | O37: 8134 | P37: 34.05 | Q37: 9.458333333 | R37: 9017 | S37: 37.75 | T37: 10.48611111 | U37: 11883 | V37: 49.751 | W37: 13.81972222 | X37: -14.7 | AD37: 100 | AE37: ОК
A38: 28 | B38: 96.687 | C38: 1.7205 | D38: 0.5437 | E38: 0.0838 | F38: 0.0859 | G38: 0.0014 | H38: 0.0165 | I38: 0.0118 | J38: 0.0032 | K38: 0.0082 | L38: 0.6976 | M38: 0.1404 | N38: 0.6936 | O38: 8131 | P38: 34.0447 | Q38: 9.456861111 | R38: 9015 | S38: 37.7439 | T38: 10.48441667 | U38: 11880 | V38: 49.7373 | W38: 13.81591667 | X38: -19.1 | Z38: 0 | AA38: 0 | AB38: 0 | AD38: 100 | AE38: ОК
A39: 29 | B39: 96.6924 | C39: 1.7102 | D39: 0.5398 | E39: 0.0841 | F39: 0.0858 | G39: 0.0021 | H39: 0.0175 | I39: 0.0124 | J39: 0.0043 | K39: 0.0077 | L39: 0.6958 | M39: 0.1478 | N39: 0.6937 | O39: 8131 | P39: 34.0422 | Q39: 9.456166667 | R39: 9014 | S39: 37.7412 | T39: 10.48366667 | U39: 11878 | V39: 49.7316 | W39: 13.81433333 | X39: -18.5 | AD39: 99.9999
A40: 30 | B40: 96.6792 | C40: 1.7293 | D40: 0.535 | E40: 0.0838 | F40: 0.0849 | G40: 0.0024 | H40: 0.0179 | I40: 0.0125 | J40: 0.0029 | K40: 0.0085 | L40: 0.7016 | M40: 0.142 | N40: 0.6936 | O40: 8131 | P40: 34.0424 | Q40: 9.456222222 | R40: 9014 | S40: 37.7414 | T40: 10.48372222 | U40: 11878 | V40: 49.7327 | W40: 13.81463889 | X40: -20.9 | AD40: =SUM(B40:M40)+$K$42+$N$42 -> 100 | AE40: =IF(AD40=100,"ОК"," ") -> ОК
A41: 31 | O41: 8131 | P41: 34.0424 | Q41: =P41/3.6 -> 9.456222222 | R41: 9014 | S41: 37.7414 | T41: =S41/3.6 -> 10.48372222 | AD41: 0
A42: Умовно постійні компоненти, мол. % від 01.01.2016 р. | I42: Гелій | K42: 0 | L42: Водень | N42: 0 | O42: =AVERAGE(O11:O41) -> 8127.16129 | P42: =AVERAGE(P11:P41) -> 34.02586129 | Q42: 9.451628136 | R42: 9010.129032 | S42: 37.72352258 | T42: 10.47875627 | Y42: Всього - обсяг природного газу за місяць з урахуванням ВТВ:
H43: Середньодобове значення теплоти згоряння: | AC43: 76.245
B45: Начальник управління Гайсинського ЛВУМГ Омельченко Ю.В. 30.12.2016
C46: Підрозділу підприємства, якому підпорядкована лабораторія | O46: прізвище | R46: підпис | V46: дата
B47: Начальник лабораторії Стук О.В. 30.12.2016
C48: Лабораторія, де здійснювалось вимірювання газу | O48: прізвище | R48: підпис | V48: дата
B49: Провідний економіст із збуту Гайсинського ЛВУМГ Гнатишин І.В. 30.12.2016
C50: Служба ОНПТГ | O50: прізвище | R50: підпис | V50: дата

Sheet variablesList (hidden)
A1: 3 | B1: x:\gaysin | C1: 10,11,24,25,127,128,132,180,207,215 | D1: x:\
B2: x:\Illinci | C2: 31
B3: x:\Talne
